[Event "Titled Tuesday Blitz August 22 Early 2023"]
[White "dodoucb"]
[Black "Clawitter, Craig"]
[BlackFideId "2023105"]
[WhiteElo "2457"]
[BlackElo "2220"]
[Result "1-0"]
[Round "4"]
[TimeControl "180+1"]
[Date "2023.08.22"]
[WhiteClock "0:00:17"]
[BlackClock "0:00:10"]
[Board "202"]

1. d4 {[%clk 0:02:56]}  e6 {[%clk 0:03:00]} 2. Nf3 {[%clk 0:02:56]}  Nf6 {[%clk 0:02:59]} 3. c4 {[%clk 0:02:56]}  d5 {[%clk 0:02:59]} 4. Nc3 {[%clk 0:02:56]}  dxc4 {[%clk 0:02:58]} 5. e3 {[%clk 0:02:49]}  c5 {[%clk 0:02:57]} 6. Bxc4 {[%clk 0:02:49]}  Nc6 {[%clk 0:02:56]} 7. O-O {[%clk 0:02:47]}  cxd4 {[%clk 0:02:56]} 8. exd4 {[%clk 0:02:48]}  Be7 {[%clk 0:02:57]} 9. Re1 {[%clk 0:02:38]}  O-O {[%clk 0:02:56]} 10. h3 {[%clk 0:02:22]}  b6 {[%clk 0:02:56]} 11. d5 {[%clk 0:02:15]}  Na5 {[%clk 0:02:35]} 12. Bd3 {[%clk 0:01:56]}  exd5 {[%clk 0:02:00]} 13. Ne5 {[%clk 0:01:38]}  Bb7 {[%clk 0:01:44]} 14. a3 {[%clk 0:01:37]}  Ne4 {[%clk 0:01:00]} 15. Qh5 {[%clk 0:01:17]}  g6 {[%clk 0:00:52]} 16. Qe2 {[%clk 0:01:15]}  Nb3 {[%clk 0:00:27]} 17. Bh6 {[%clk 0:01:07]}  Nxa1 {[%clk 0:00:26]} 18. Rxa1 {[%clk 0:01:05]}  Bf6 {[%clk 0:00:23]} 19. Bxf8 {[%clk 0:00:58]}  Bxe5 {[%clk 0:00:15]} 20. Bxe4 {[%clk 0:00:57]}  Bxc3 {[%clk 0:00:13]} 21. Bh6 {[%clk 0:00:42]}  Bg7 {[%clk 0:00:13]} 22. Bxg7 {[%clk 0:00:39]}  Kxg7 {[%clk 0:00:14]} 23. Bf3 {[%clk 0:00:38]}  Qf6 {[%clk 0:00:13]} 24. Rd1 {[%clk 0:00:38]}  Rd8 {[%clk 0:00:11]} 25. Qc2 {[%clk 0:00:38]}  Ba8 {[%clk 0:00:09]} 26. Qa4 {[%clk 0:00:34]}  a5 {[%clk 0:00:06]} 27. Qb5 {[%clk 0:00:33]}  d4 {[%clk 0:00:06]} 28. Bxa8 {[%clk 0:00:31]}  Rxa8 {[%clk 0:00:06]} 29. Rd3 {[%clk 0:00:28]}  Rd8 {[%clk 0:00:06]} 30. Qc4 {[%clk 0:00:26]}  Rd6 {[%clk 0:00:06]} 31. b4 {[%clk 0:00:24]}  axb4 {[%clk 0:00:06]} 32. axb4 {[%clk 0:00:25]}  Qd8 {[%clk 0:00:06]} 33. g3 {[%clk 0:00:20]}  Qf6 {[%clk 0:00:06]} 34. Kg2 {[%clk 0:00:19]}  Qf5 {[%clk 0:00:06]} 35. Rf3 {[%clk 0:00:18]}  Qd5 {[%clk 0:00:06]} 36. Qd3 {[%clk 0:00:17]}  b5 {[%clk 0:00:06]} 37. g4 {[%clk 0:00:15]}  Qc4 {[%clk 0:00:06]} 38. Kg3 {[%clk 0:00:12]}  Qxd3 {[%clk 0:00:06]} 39. Rxd3 {[%clk 0:00:13]}  Kf6 {[%clk 0:00:06]} 40. Kf4 {[%clk 0:00:14]}  g5+ {[%clk 0:00:06]} 41. Ke4 {[%clk 0:00:14]}  h5 {[%clk 0:00:05]} 42. Rxd4 {[%clk 0:00:14]}  Rxd4+ {[%clk 0:00:05]} 43. Kxd4 {[%clk 0:00:15]}  hxg4 {[%clk 0:00:06]} 44. hxg4 {[%clk 0:00:15]}  Ke6 {[%clk 0:00:06]} 45. Kc5 {[%clk 0:00:16]}  Ke5 {[%clk 0:00:04]} 46. Kxb5 {[%clk 0:00:16]}  Kf4 {[%clk 0:00:05]} 47. Kc6 {[%clk 0:00:17]}  Kxg4 {[%clk 0:00:06]} 48. b5 {[%clk 0:00:18]}  Kf3 {[%clk 0:00:07]} 49. b6 {[%clk 0:00:19]}  Kxf2 {[%clk 0:00:08]} 50. b7 {[%clk 0:00:19]}  g4 {[%clk 0:00:09]} 51. b8=Q {[%clk 0:00:20]}  g3 {[%clk 0:00:10]} 52. Qf4+ {[%clk 0:00:20]}  Kg2 {[%clk 0:00:10]} 53. Qxf7 {[%clk 0:00:21]}  Kg1 {[%clk 0:00:10]} 54. Qf3 {[%clk 0:00:18]}  g2 {[%clk 0:00:10]} 55. Qe3+ {[%clk 0:00:18]}  Kh2 {[%clk 0:00:10]} 56. Qh6+ {[%clk 0:00:18]}  Kg1 {[%clk 0:00:10]} 57. Kd5 {[%clk 0:00:18]}  Kf2 {[%clk 0:00:11]} 58. Qf4+ {[%clk 0:00:18]}  Ke1 {[%clk 0:00:10]} 59. Qg3+ {[%clk 0:00:18]}  Kf1 {[%clk 0:00:10]} 60. Qf3+ {[%clk 0:00:18]}  Kg1 {[%clk 0:00:11]} 61. Ke4 {[%clk 0:00:19]}  Kh2 {[%clk 0:00:12]} 62. Qh5+ {[%clk 0:00:18]}  Kg1 {[%clk 0:00:12]} 63. Kf3 {[%clk 0:00:18]}  Kf1 {[%clk 0:00:12]} 64. Qb5+ {[%clk 0:00:17]}  Kg1 {[%clk 0:00:10]} 65. Qg5 {[%clk 0:00:16]}  Kf1 {[%clk 0:00:10]} 66. Qxg2+ {[%clk 0:00:16]}  Ke1 {[%clk 0:00:10]} 67. Qe2# {[%clk 0:00:17]} 1-0


[Site "https://www.chess.com"]

[Event "Titled Tuesday Blitz August 22 Early 2023"]
[White "Andreassen, Lars"]
[Black "Derichs, Roger"]
[WhiteFideId "1504878"]
[BlackFideId "4630076"]
[WhiteElo "2219"]
[BlackElo "2456"]
[Result "0-1"]
[Round "4"]
[TimeControl "180+1"]
[Date "2023.08.22"]
[WhiteClock "0:00:01"]
[BlackClock "0:00:22"]
[Board "204"]

1. d4 {[%clk 0:02:42]}  d6 {[%clk 0:02:57]} 2. Nf3 {[%clk 0:02:43]}  Bg4 {[%clk 0:02:54]} 3. e4 {[%clk 0:02:40]}  Nf6 {[%clk 0:02:50]} 4. Nc3 {[%clk 0:02:39]}  e6 {[%clk 0:02:47]} 5. Bg5 {[%clk 0:02:39]}  Be7 {[%clk 0:02:47]} 6. Qd2 {[%clk 0:02:37]}  d5 {[%clk 0:02:44]} 7. exd5 {[%clk 0:02:34]}  Nxd5 {[%clk 0:02:38]} 8. Bxe7 {[%clk 0:02:33]}  Qxe7 {[%clk 0:02:32]} 9. Be2 {[%clk 0:02:31]}  O-O {[%clk 0:02:29]} 10. O-O {[%clk 0:02:29]}  Rd8 {[%clk 0:02:29]} 11. Rfe1 {[%clk 0:02:28]}  c5 {[%clk 0:02:23]} 12. Ne5 {[%clk 0:02:13]}  Bxe2 {[%clk 0:02:01]} 13. Rxe2 {[%clk 0:02:13]}  Nxc3 {[%clk 0:01:49]} 14. bxc3 {[%clk 0:02:13]}  Nd7 {[%clk 0:01:50]} 15. Rae1 {[%clk 0:02:08]}  Nxe5 {[%clk 0:01:36]} 16. Rxe5 {[%clk 0:02:08]}  cxd4 {[%clk 0:01:36]} 17. cxd4 {[%clk 0:02:08]}  Qc7 {[%clk 0:01:29]} 18. d5 {[%clk 0:01:44]}  Rac8 {[%clk 0:01:25]} 19. Qe3 {[%clk 0:01:29]}  Qc5 {[%clk 0:01:08]} 20. dxe6 {[%clk 0:01:19]}  Qxe3 {[%clk 0:01:04]} 21. exf7+ {[%clk 0:01:19]}  Kxf7 {[%clk 0:01:04]} 22. R5xe3 {[%clk 0:01:16]}  Rd7 {[%clk 0:00:58]} 23. c3 {[%clk 0:01:10]}  Rdc7 {[%clk 0:00:55]} 24. Rf3+ {[%clk 0:01:06]}  Kg8 {[%clk 0:00:53]} 25. Ree3 {[%clk 0:01:01]}  b5 {[%clk 0:00:49]} 26. a3 {[%clk 0:00:58]}  Rc4 {[%clk 0:00:48]} 27. g3 {[%clk 0:00:58]}  h6 {[%clk 0:00:46]} 28. Re7 {[%clk 0:00:57]}  R8c7 {[%clk 0:00:43]} 29. Rxc7 {[%clk 0:00:50]}  Rxc7 {[%clk 0:00:44]} 30. Kg2 {[%clk 0:00:45]}  Rc4 {[%clk 0:00:44]} 31. Rf5 {[%clk 0:00:24]}  a6 {[%clk 0:00:44]} 32. Rf3 {[%clk 0:00:21]}  Ra4 {[%clk 0:00:43]} 33. Re3 {[%clk 0:00:20]}  Rxa3 {[%clk 0:00:43]} 34. Kf3 {[%clk 0:00:21]}  Rb3 {[%clk 0:00:40]} 35. Ke4 {[%clk 0:00:21]}  Rb2 {[%clk 0:00:38]} 36. Rf3 {[%clk 0:00:18]}  a5 {[%clk 0:00:38]} 37. Kd5 {[%clk 0:00:19]}  a4 {[%clk 0:00:38]} 38. Re3 {[%clk 0:00:14]}  Rxf2 {[%clk 0:00:35]} 39. h4 {[%clk 0:00:12]}  Rb2 {[%clk 0:00:29]} 40. Kc5 {[%clk 0:00:11]}  Rb3 {[%clk 0:00:26]} 41. Kd4 {[%clk 0:00:10]}  b4 {[%clk 0:00:20]} 42. cxb4 {[%clk 0:00:04]}  Rxe3 {[%clk 0:00:20]} 43. Kxe3 {[%clk 0:00:04]}  a3 {[%clk 0:00:21]} 44. Kd3 {[%clk 0:00:01]}  a2 {[%clk 0:00:22]} 0-1


[Site "https://www.chess.com"]

[Event "Titled Tuesday Blitz August 22 Early 2023"]
[White "Swicarz, Maciej"]
[Black "Pert, Nina"]
[WhiteFideId "1113585"]
[BlackFideId "456853"]
[WhiteElo "2456"]
[BlackElo "2207"]
[Result "1-0"]
[Round "4"]
[TimeControl "180+1"]
[Date "2023.08.22"]
[WhiteClock "0:01:13"]
[BlackClock "0:00:08"]
[Board "205"]

1. e4 {[%clk 0:03:00]}  e6 {[%clk 0:02:59]} 2. d4 {[%clk 0:03:00]}  d5 {[%clk 0:02:59]} 3. e5 {[%clk 0:03:01]}  c5 {[%clk 0:02:56]} 4. Qg4 {[%clk 0:03:01]}  cxd4 {[%clk 0:02:50]} 5. Nf3 {[%clk 0:03:01]}  Nc6 {[%clk 0:02:49]} 6. Bd3 {[%clk 0:03:01]}  Nge7 {[%clk 0:02:43]} 7. O-O {[%clk 0:03:01]}  Ng6 {[%clk 0:02:42]} 8. Re1 {[%clk 0:03:01]}  Be7 {[%clk 0:02:37]} 9. a3 {[%clk 0:02:59]}  Qb6 {[%clk 0:02:35]} 10. h4 {[%clk 0:02:57]}  Bf8 {[%clk 0:01:55]} 11. h5 {[%clk 0:02:56]}  Nge7 {[%clk 0:01:55]} 12. c3 {[%clk 0:02:57]}  Bd7 {[%clk 0:01:49]} 13. cxd4 {[%clk 0:02:52]}  O-O-O {[%clk 0:01:49]} 14. Nc3 {[%clk 0:02:51]}  f6 {[%clk 0:01:47]} 15. b4 {[%clk 0:02:40]}  f5 {[%clk 0:01:32]} 16. Qf4 {[%clk 0:02:37]}  h6 {[%clk 0:01:30]} 17. Bb2 {[%clk 0:02:30]}  g5 {[%clk 0:01:30]} 18. hxg6 {[%clk 0:02:29]}  Nxg6 {[%clk 0:01:29]} 19. Qe3 {[%clk 0:02:23]}  h5 {[%clk 0:01:22]} 20. Na4 {[%clk 0:02:22]}  Qc7 {[%clk 0:01:21]} 21. b5 {[%clk 0:02:23]}  Bh6 {[%clk 0:01:08]} 22. Ng5 {[%clk 0:02:12]}  Na5 {[%clk 0:00:58]} 23. Rec1 {[%clk 0:02:10]}  Nc4 {[%clk 0:00:54]} 24. Bxc4 {[%clk 0:02:08]}  dxc4 {[%clk 0:00:54]} 25. d5 {[%clk 0:02:08]}  Bxb5 {[%clk 0:00:34]} 26. Qxa7 {[%clk 0:02:00]}  Bxa4 {[%clk 0:00:31]} 27. Qxa4 {[%clk 0:02:01]}  exd5 {[%clk 0:00:27]} 28. Ne6 {[%clk 0:01:50]}  Qb6 {[%clk 0:00:26]} 29. Nxd8 {[%clk 0:01:43]}  Rxd8 {[%clk 0:00:19]} 30. Rcb1 {[%clk 0:01:35]}  Qc5 {[%clk 0:00:19]} 31. e6 {[%clk 0:01:28]}  Nf4 {[%clk 0:00:17]} 32. Qa8+ {[%clk 0:01:20]}  Kc7 {[%clk 0:00:09]} 33. Be5+ {[%clk 0:01:20]}  Rd6 {[%clk 0:00:08]} 34. Rxb7+ {[%clk 0:01:16]}  Kc6 {[%clk 0:00:08]} 35. Qc8# {[%clk 0:01:13]} 1-0


[Site "https://www.chess.com"]

[Event "Titled Tuesday Blitz August 22 Early 2023"]
[White "Sava, Christiansen-Danut-Eugen"]
[Black "Fule, Simon"]
[WhiteFideId "1210114"]
[BlackFideId "787515"]
[WhiteElo "2201"]
[BlackElo "2456"]
[Result "0-1"]
[Round "4"]
[TimeControl "180+1"]
[Date "2023.08.22"]
[WhiteClock "0:00:09"]
[BlackClock "0:00:04"]
[Board "206"]

1. c4 {[%clk 0:03:00]}  e5 {[%clk 0:02:59]} 2. e3 {[%clk 0:02:59]}  d6 {[%clk 0:02:57]} 3. Nc3 {[%clk 0:02:59]}  g6 {[%clk 0:02:57]} 4. d4 {[%clk 0:03:00]}  Nd7 {[%clk 0:02:56]} 5. Nf3 {[%clk 0:02:52]}  Bg7 {[%clk 0:02:56]} 6. Be2 {[%clk 0:02:52]}  f5 {[%clk 0:02:56]} 7. O-O {[%clk 0:02:51]}  Ngf6 {[%clk 0:02:56]} 8. Ng5 {[%clk 0:02:33]}  Qe7 {[%clk 0:02:45]} 9. d5 {[%clk 0:02:31]}  Nb8 {[%clk 0:02:29]} 10. c5 {[%clk 0:01:34]}  O-O {[%clk 0:01:48]} 11. c6 {[%clk 0:00:29]}  bxc6 {[%clk 0:00:48]} 12. dxc6 {[%clk 0:00:30]}  h6 {[%clk 0:00:48]} 13. Bc4+ {[%clk 0:00:19]}  Kh8 {[%clk 0:00:48]} 14. Nf3 {[%clk 0:00:19]}  Nxc6 {[%clk 0:00:46]} 15. Nd5 {[%clk 0:00:19]}  Nxd5 {[%clk 0:00:46]} 16. Bxd5 {[%clk 0:00:19]}  Bb7 {[%clk 0:00:39]} 17. Bd2 {[%clk 0:00:18]}  Nd8 {[%clk 0:00:34]} 18. Bxb7 {[%clk 0:00:18]}  Nxb7 {[%clk 0:00:34]} 19. Rc1 {[%clk 0:00:16]}  c5 {[%clk 0:00:25]} 20. Bc3 {[%clk 0:00:16]}  Qe6 {[%clk 0:00:20]} 21. a3 {[%clk 0:00:14]}  Nd8 {[%clk 0:00:17]} 22. Qa4 {[%clk 0:00:14]}  Nf7 {[%clk 0:00:14]} 23. Rfd1 {[%clk 0:00:14]}  Rfd8 {[%clk 0:00:13]} 24. Qa6 {[%clk 0:00:14]}  g5 {[%clk 0:00:12]} 25. Ba5 {[%clk 0:00:14]}  Rd7 {[%clk 0:00:11]} 26. Nd2 {[%clk 0:00:13]}  Re8 {[%clk 0:00:10]} 27. Nc4 {[%clk 0:00:13]}  d5 {[%clk 0:00:10]} 28. Qxe6 {[%clk 0:00:14]}  Rxe6 {[%clk 0:00:11]} 29. b4 {[%clk 0:00:12]}  cxb4 {[%clk 0:00:09]} 30. axb4 {[%clk 0:00:12]}  Kh7 {[%clk 0:00:09]} 31. f3 {[%clk 0:00:11]}  Rc6 {[%clk 0:00:09]} 32. e4 {[%clk 0:00:11]}  fxe4 {[%clk 0:00:08]} 33. fxe4 {[%clk 0:00:11]}  d4 {[%clk 0:00:09]} 34. Nb2 {[%clk 0:00:11]}  Rxc1 {[%clk 0:00:08]} 35. Rxc1 {[%clk 0:00:11]}  Nd6 {[%clk 0:00:09]} 36. Re1 {[%clk 0:00:10]}  Nb5 {[%clk 0:00:08]} 37. Nd3 {[%clk 0:00:10]}  Nc3 {[%clk 0:00:08]} 38. Kf2 {[%clk 0:00:09]}  Rf7+ {[%clk 0:00:07]} 39. Kg3 {[%clk 0:00:10]}  h5 {[%clk 0:00:07]} 40. h4 {[%clk 0:00:10]}  Bh6 {[%clk 0:00:07]} 41. hxg5 {[%clk 0:00:09]}  Bxg5 {[%clk 0:00:08]} 42. Rh1 {[%clk 0:00:10]}  Nxe4+ {[%clk 0:00:07]} 43. Kh2 {[%clk 0:00:09]}  Kg6 {[%clk 0:00:06]} 44. Nxe5+ {[%clk 0:00:09]}  Kf6 {[%clk 0:00:07]} 45. Nxf7 {[%clk 0:00:09]}  Kxf7 {[%clk 0:00:08]} 46. Rd1 {[%clk 0:00:09]}  Be3 {[%clk 0:00:07]} 47. Rf1+ {[%clk 0:00:09]}  Ke6 {[%clk 0:00:06]} 48. b5 {[%clk 0:00:09]}  d3 {[%clk 0:00:06]} 49. Rd1 {[%clk 0:00:09]}  Nf2 {[%clk 0:00:06]} 50. Rf1 {[%clk 0:00:08]}  d2 {[%clk 0:00:05]} 51. Bxd2 {[%clk 0:00:08]}  Ng4+ {[%clk 0:00:06]} 52. Kg3 {[%clk 0:00:08]}  Bxd2 {[%clk 0:00:06]} 53. Kh4 {[%clk 0:00:08]}  Nf6 {[%clk 0:00:04]} 54. Rd1 {[%clk 0:00:08]}  Be3 {[%clk 0:00:04]} 55. Re1 {[%clk 0:00:08]}  Nd5 {[%clk 0:00:03]} 56. Kxh5 {[%clk 0:00:08]}  Kd6 {[%clk 0:00:02]} 57. g4 {[%clk 0:00:08]}  Kc5 {[%clk 0:00:03]} 58. g5 {[%clk 0:00:09]}  Kxb5 {[%clk 0:00:02]} 59. g6 {[%clk 0:00:09]}  Bd4 {[%clk 0:00:03]} 60. Rd1 {[%clk 0:00:07]}  Kc4 {[%clk 0:00:03]} 61. Kg5 {[%clk 0:00:06]}  a5 {[%clk 0:00:03]} 62. Kf5 {[%clk 0:00:06]}  Ne3+ {[%clk 0:00:02]} 63. Ke4 {[%clk 0:00:04]}  Nxd1 {[%clk 0:00:03]} 64. Kf3 {[%clk 0:00:04]}  a4 {[%clk 0:00:03]} 65. Ke2 {[%clk 0:00:04]}  Nc3+ {[%clk 0:00:04]} 66. Kd2 {[%clk 0:00:04]}  Kb3 {[%clk 0:00:04]} 67. g7 {[%clk 0:00:04]}  Bxg7 {[%clk 0:00:04]} 68. Kc1 {[%clk 0:00:04]}  a3 {[%clk 0:00:04]} 69. Kd2 {[%clk 0:00:05]}  a2 {[%clk 0:00:04]} 70. Kd3 {[%clk 0:00:05]}  a1=Q {[%clk 0:00:03]} 71. Ke3 {[%clk 0:00:06]}  Qe1+ {[%clk 0:00:04]} 72. Kf3 {[%clk 0:00:07]}  Qe2+ {[%clk 0:00:04]} 73. Kg3 {[%clk 0:00:08]}  Ne4+ {[%clk 0:00:03]} 74. Kh4 {[%clk 0:00:08]}  Bf6+ {[%clk 0:00:03]} 75. Kh3 {[%clk 0:00:07]}  Qf3+ {[%clk 0:00:03]} 76. Kh2 {[%clk 0:00:08]}  Be5+ {[%clk 0:00:03]} 77. Kg1 {[%clk 0:00:09]}  Qf2+ {[%clk 0:00:03]} 78. Kh1 {[%clk 0:00:09]}  Ng3# {[%clk 0:00:04]} 0-1


[Site "https://www.chess.com"]

[Event "Titled Tuesday Blitz August 22 Early 2023"]
[White "Rosh Jain"]
[Black "Feliz Dotel, Dewar Bienvenido"]
[WhiteFideId "25789465"]
[BlackFideId "6402801"]
[WhiteElo "2444"]
[BlackElo "2133"]
[Result "1-0"]
[Round "4"]
[TimeControl "180+1"]
[Date "2023.08.22"]
[WhiteClock "0:00:02"]
[BlackClock "0:00:00"]
[Board "210"]

1. e4 {[%clk 0:03:00]}  e5 {[%clk 0:03:00]} 2. Nf3 {[%clk 0:03:00]}  Nc6 {[%clk 0:03:00]} 3. Bb5 {[%clk 0:03:00]}  Nf6 {[%clk 0:03:00]} 4. d3 {[%clk 0:02:59]}  Ne7 {[%clk 0:02:59]} 5. O-O {[%clk 0:02:55]}  c6 {[%clk 0:02:59]} 6. Ba4 {[%clk 0:02:53]}  Ng6 {[%clk 0:02:58]} 7. c3 {[%clk 0:02:52]}  Be7 {[%clk 0:02:54]} 8. Re1 {[%clk 0:02:51]}  d6 {[%clk 0:02:52]} 9. d4 {[%clk 0:02:48]}  b5 {[%clk 0:02:51]} 10. Bb3 {[%clk 0:02:47]}  O-O {[%clk 0:02:51]} 11. Nbd2 {[%clk 0:02:45]}  a5 {[%clk 0:02:50]} 12. a4 {[%clk 0:02:43]}  b4 {[%clk 0:02:22]} 13. Nf1 {[%clk 0:02:40]}  bxc3 {[%clk 0:02:21]} 14. bxc3 {[%clk 0:02:40]}  Rb8 {[%clk 0:02:19]} 15. Ng3 {[%clk 0:02:36]}  Bg4 {[%clk 0:02:19]} 16. Bc2 {[%clk 0:02:20]}  Qc7 {[%clk 0:02:08]} 17. h3 {[%clk 0:02:19]}  Bd7 {[%clk 0:02:04]} 18. Ba3 {[%clk 0:02:12]}  Rfe8 {[%clk 0:01:56]} 19. Qd2 {[%clk 0:02:10]}  d5 {[%clk 0:01:43]} 20. Bxe7 {[%clk 0:02:05]}  Rxe7 {[%clk 0:01:44]} 21. Nf5 {[%clk 0:02:02]}  Bxf5 {[%clk 0:01:44]} 22. exf5 {[%clk 0:02:02]}  e4 {[%clk 0:01:28]} 23. fxg6 {[%clk 0:01:57]}  exf3 {[%clk 0:01:28]} 24. gxh7+ {[%clk 0:01:55]}  Nxh7 {[%clk 0:01:22]} 25. Bxh7+ {[%clk 0:01:51]}  Kxh7 {[%clk 0:01:22]} 26. Qd3+ {[%clk 0:01:51]}  Kg8 {[%clk 0:01:19]} 27. Qxf3 {[%clk 0:01:51]}  Rbe8 {[%clk 0:01:18]} 28. Kf1 {[%clk 0:01:22]}  Qb6 {[%clk 0:01:06]} 29. Qd3 {[%clk 0:00:57]}  Rxe1+ {[%clk 0:00:46]} 30. Rxe1 {[%clk 0:00:57]}  Rxe1+ {[%clk 0:00:46]} 31. Kxe1 {[%clk 0:00:57]}  Qb3 {[%clk 0:00:46]} 32. Kd2 {[%clk 0:00:52]}  Qxa4 {[%clk 0:00:46]} 33. Qf5 {[%clk 0:00:38]}  Qa2+ {[%clk 0:00:43]} 34. Ke3 {[%clk 0:00:37]}  Qb2 {[%clk 0:00:37]} 35. Qc8+ {[%clk 0:00:36]}  Kh7 {[%clk 0:00:37]} 36. Qf5+ {[%clk 0:00:34]}  Kg8 {[%clk 0:00:36]} 37. Qc8+ {[%clk 0:00:34]}  Kh7 {[%clk 0:00:36]} 38. Qxc6 {[%clk 0:00:29]}  Qc1+ {[%clk 0:00:31]} 39. Kf3 {[%clk 0:00:26]}  Qd1+ {[%clk 0:00:27]} 40. Kg3 {[%clk 0:00:27]}  Qd3+ {[%clk 0:00:25]} 41. Kh2 {[%clk 0:00:26]}  Qc4 {[%clk 0:00:15]} 42. Qd7 {[%clk 0:00:16]}  a4 {[%clk 0:00:12]} 43. Qxf7 {[%clk 0:00:14]}  a3 {[%clk 0:00:10]} 44. Qf5+ {[%clk 0:00:12]}  Kg8 {[%clk 0:00:10]} 45. Qe6+ {[%clk 0:00:12]}  Kh7 {[%clk 0:00:10]} 46. Qf5+ {[%clk 0:00:12]}  Kg8 {[%clk 0:00:10]} 47. Qe6+ {[%clk 0:00:06]}  Kh7 {[%clk 0:00:10]} 48. Qe8 {[%clk 0:00:03]}  Qc7+ {[%clk 0:00:07]} 49. g3 {[%clk 0:00:03]}  Qxc3 {[%clk 0:00:05]} 50. Qh5+ {[%clk 0:00:03]}  Kg8 {[%clk 0:00:04]} 51. Qxd5+ {[%clk 0:00:03]}  Kh7 {[%clk 0:00:04]} 52. Qf5+ {[%clk 0:00:02]}  Kg8 {[%clk 0:00:03]} 53. d5 {[%clk 0:00:02]}  Qb2 {[%clk 0:00:03]} 54. Qe6+ {[%clk 0:00:02]}  Kh7 {[%clk 0:00:03]} 55. d6 {[%clk 0:00:02]}  a2 {[%clk 0:00:03]} 56. Qf5+ {[%clk 0:00:02]}  g6 {[%clk 0:00:02]} 57. Qf7+ {[%clk 0:00:03]}  Kh6 {[%clk 0:00:02]} 58. d7 {[%clk 0:00:02]}  a1=Q {[%clk 0:00:00]} 59. d8=Q {[%clk 0:00:02]} 1-0


[Site "https://www.chess.com"]

[Event "Titled Tuesday Blitz August 22 Early 2023"]
[White "Floresvillar Gonzalez, Luis Migu"]
[Black "Arencibia Monduy, Antonio"]
[WhiteFideId "5100542"]
[BlackFideId "3507939"]
[WhiteElo "2132"]
[BlackElo "2442"]
[Result "0-1"]
[Round "4"]
[TimeControl "180+1"]
[Date "2023.08.22"]
[WhiteClock "0:00:00"]
[BlackClock "0:00:03"]
[Board "211"]

1. d4 {[%clk 0:03:00]}  c5 {[%clk 0:02:58]} 2. c3 {[%clk 0:02:54]}  Nf6 {[%clk 0:02:57]} 3. Nf3 {[%clk 0:02:54]}  e6 {[%clk 0:02:55]} 4. Bg5 {[%clk 0:02:53]}  cxd4 {[%clk 0:02:54]} 5. cxd4 {[%clk 0:02:50]}  Be7 {[%clk 0:02:54]} 6. Nc3 {[%clk 0:02:50]}  O-O {[%clk 0:02:55]} 7. e3 {[%clk 0:02:50]}  d5 {[%clk 0:02:55]} 8. Bd3 {[%clk 0:02:49]}  Nc6 {[%clk 0:02:55]} 9. O-O {[%clk 0:02:49]}  b6 {[%clk 0:02:54]} 10. a3 {[%clk 0:02:47]}  Bb7 {[%clk 0:02:53]} 11. Rc1 {[%clk 0:02:46]}  Rb8 {[%clk 0:02:52]} 12. Bb1 {[%clk 0:02:45]}  h6 {[%clk 0:02:49]} 13. Bxf6 {[%clk 0:02:42]}  Bxf6 {[%clk 0:02:49]} 14. Qd3 {[%clk 0:02:41]}  g6 {[%clk 0:02:50]} 15. Qe2 {[%clk 0:02:27]}  Rc8 {[%clk 0:02:29]} 16. Bd3 {[%clk 0:02:27]}  Na5 {[%clk 0:02:24]} 17. Ne5 {[%clk 0:02:23]}  Bxe5 {[%clk 0:02:22]} 18. dxe5 {[%clk 0:02:23]}  d4 {[%clk 0:02:17]} 19. Ne4 {[%clk 0:02:14]}  Bxe4 {[%clk 0:02:08]} 20. Bxe4 {[%clk 0:02:05]}  dxe3 {[%clk 0:02:03]} 21. Qxe3 {[%clk 0:01:56]}  Kg7 {[%clk 0:01:58]} 22. Rxc8 {[%clk 0:01:42]}  Qxc8 {[%clk 0:01:58]} 23. h4 {[%clk 0:01:39]}  Qb8 {[%clk 0:00:55]} 24. Qg3 {[%clk 0:01:30]}  Nc4 {[%clk 0:00:51]} 25. f4 {[%clk 0:01:24]}  Nd2 {[%clk 0:00:46]} 26. Re1 {[%clk 0:01:17]}  Nxe4 {[%clk 0:00:46]} 27. Rxe4 {[%clk 0:01:16]}  h5 {[%clk 0:00:46]} 28. Qg5 {[%clk 0:01:13]}  Qc7 {[%clk 0:00:44]} 29. Rd4 {[%clk 0:00:51]}  Qc1+ {[%clk 0:00:33]} 30. Kh2 {[%clk 0:00:50]}  Qxb2 {[%clk 0:00:31]} 31. Qf6+ {[%clk 0:00:49]}  Kg8 {[%clk 0:00:30]} 32. Rd6 {[%clk 0:00:44]}  Qb3 {[%clk 0:00:24]} 33. a4 {[%clk 0:00:41]}  Qc4 {[%clk 0:00:15]} 34. Rd7 {[%clk 0:00:20]}  Qxa4 {[%clk 0:00:12]} 35. Re7 {[%clk 0:00:20]}  Qc6 {[%clk 0:00:11]} 36. Rxa7 {[%clk 0:00:19]}  b5 {[%clk 0:00:11]} 37. Ra3 {[%clk 0:00:11]}  b4 {[%clk 0:00:11]} 38. Rg3 {[%clk 0:00:11]}  Kh7 {[%clk 0:00:09]} 39. Rg5 {[%clk 0:00:09]}  Qd7 {[%clk 0:00:04]} 40. f5 {[%clk 0:00:09]}  exf5 {[%clk 0:00:03]} 41. e6 {[%clk 0:00:07]}  Qd6+ {[%clk 0:00:03]} 42. g3 {[%clk 0:00:06]}  Qxe6 {[%clk 0:00:04]} 43. Rxg6 {[%clk 0:00:03]}  Qxf6 {[%clk 0:00:02]} 44. Rxf6 {[%clk 0:00:03]}  Rb8 {[%clk 0:00:02]} 45. Rxf5 {[%clk 0:00:03]}  Kg6 {[%clk 0:00:02]} 46. Rf1 {[%clk 0:00:00]}  b3 {[%clk 0:00:03]} 0-1


[Site "https://www.chess.com"]

[Event "Titled Tuesday Blitz August 22 Early 2023"]
[White "MateoReyes"]
[Black "Hartikainen, Jarmo"]
[BlackFideId "503134"]
[WhiteElo "2436"]
[BlackElo "2110"]
[Result "1-0"]
[Round "4"]
[TimeControl "180+1"]
[Date "2023.08.22"]
[WhiteClock "0:01:20"]
[BlackClock "0:00:02"]
[Board "212"]

1. Nf3 {[%clk 0:03:00]}  Nf6 {[%clk 0:02:59]} 2. d4 {[%clk 0:03:00]}  d5 {[%clk 0:02:59]} 3. c4 {[%clk 0:03:00]}  c5 {[%clk 0:02:59]} 4. Nc3 {[%clk 0:03:00]}  Nc6 {[%clk 0:02:59]} 5. cxd5 {[%clk 0:03:00]}  Nxd5 {[%clk 0:02:55]} 6. e4 {[%clk 0:02:59]}  Nxc3 {[%clk 0:02:54]} 7. bxc3 {[%clk 0:02:59]}  Bg4 {[%clk 0:02:15]} 8. d5 {[%clk 0:02:58]}  Nb8 {[%clk 0:02:02]} 9. Ne5 {[%clk 0:02:50]}  Bxd1 {[%clk 0:01:59]} 10. Bb5+ {[%clk 0:02:50]}  Nd7 {[%clk 0:01:46]} 11. Bxd7+ {[%clk 0:02:49]}  Qxd7 {[%clk 0:01:45]} 12. Nxd7 {[%clk 0:02:49]}  Kxd7 {[%clk 0:01:32]} 13. Kxd1 {[%clk 0:02:47]}  b5 {[%clk 0:01:29]} 14. Be3 {[%clk 0:02:44]}  e6 {[%clk 0:01:28]} 15. a4 {[%clk 0:02:37]}  b4 {[%clk 0:01:06]} 16. a5 {[%clk 0:02:33]}  exd5 {[%clk 0:01:03]} 17. exd5 {[%clk 0:02:32]}  Bd6 {[%clk 0:00:59]} 18. c4 {[%clk 0:02:26]}  Rhe8 {[%clk 0:00:49]} 19. Kc2 {[%clk 0:02:26]}  Re4 {[%clk 0:00:47]} 20. Kb3 {[%clk 0:02:26]}  Rae8 {[%clk 0:00:42]} 21. Rad1 {[%clk 0:02:17]}  f5 {[%clk 0:00:33]} 22. g3 {[%clk 0:02:05]}  f4 {[%clk 0:00:32]} 23. gxf4 {[%clk 0:02:05]}  Bxf4 {[%clk 0:00:32]} 24. Rhg1 {[%clk 0:01:58]}  g6 {[%clk 0:00:20]} 25. Bxc5 {[%clk 0:01:54]}  Bd6 {[%clk 0:00:12]} 26. Be3 {[%clk 0:01:47]}  a6 {[%clk 0:00:11]} 27. Rd4 {[%clk 0:01:42]}  Rxd4 {[%clk 0:00:10]} 28. Bxd4 {[%clk 0:01:42]}  Re2 {[%clk 0:00:10]} 29. c5 {[%clk 0:01:36]}  Rd2 {[%clk 0:00:09]} 30. Kc4 {[%clk 0:01:31]}  Rc2+ {[%clk 0:00:08]} 31. Kb3 {[%clk 0:01:29]}  Rd2 {[%clk 0:00:07]} 32. Kc4 {[%clk 0:01:25]}  b3 {[%clk 0:00:05]} 33. Be3 {[%clk 0:01:23]}  Rc2+ {[%clk 0:00:04]} 34. Kxb3 {[%clk 0:01:22]}  Ra2 {[%clk 0:00:02]} 35. Kxa2 {[%clk 0:01:20]} 1-0


[Site "https://www.chess.com"]